Cogmind - Beta 16.1 @@@ ROGUE MODE // 2026.04.03 @ 23:44:51 Player: FALKE Result: Destroyed by Y-45 Defender with Heavy Assault Rifle Performance ------------- Evolutions (1) 500 Regions Visited (2) 400 Robots Destroyed (26) 130 Value Destroyed (511) 511 Prototype IDs (0) 0 Alien Tech Used (0) 0 Bonus (0) 0 TOTAL SCORE: 1541 Bonus ------- None Cogmind --------- Core Integrity 0/400 Matter 253/300 Energy 100/100 System Corruption 2% Temperature Cool (27) Movement Core (1350) Ox26 Location -9/Materials Parts ------- > --- POWER (2) -------- (None) > --- PROPULSION (2) --- (None) > --- UTILITY (3) ------ Huge Storage Unit > --- WEAPON (2) ------- (None) > --- INVENTORY (25) --- Small Matter Pod (50) Improved Terrain Scanner Tractor Beam Peak State ------------ > --- POWER ------------ Ion Engine > --- PROPULSION ------- Wheel Compact Wheel > --- UTILITY ---------- Small Storage Unit Improved Terrain Scanner > --- WEAPON ----------- Small Laser Light Assault Rifle > --- INVENTORY -------- Light Assault Rifle [Rating: 9] Favorites ----------- Power Ion Engine Engine Ion Engine Propulsion Wheel Treads Light Treads Wheel Wheel Utility Improved Terrain Scanner Device Improved Terrain Scanner Storage Huge Storage Unit Protection Weapon Shielding Weapon Light Assault Rifle Energy Gun Small Laser Ballistic Gun Light Assault Rifle Launcher Grenade Launcher Special Weapon Mining Laser Build | -11 -10 -9 ------- Run | Yrd Mat Mat Slots Evolved 2 | . . 2 Power 1 | . . 1 Propulsion . | . . . Utility 1 | . . 1 Weapon . | . . . Parts Attached 23 | 11 11 1 Power 3 | 1 1 1 Engine 3 | 1 1 1 Core . | . . . Reactor . | . . . Propulsion 7 | 5 2 . Treads 1 | 1 . . Leg . | . . . Wheel 6 | 4 2 . Hover . | . . . Flight . | . . . Utility 7 | 3 4 . Device 2 | 1 1 . Storage 3 | 2 1 . Processor . | . . . Hackware . | . . . Protection 2 | . 2 . Artifact . | . . . Weapon 6 | 2 4 . Energy Gun 1 | 1 . . Energy Cannon . | . . . Ballistic Gun 2 | 1 1 . Ballistic Cannon . | . . . Launcher 1 | . 1 . Special Weapon 2 | . 2 . Impact Weapon . | . . . Slashing Weapon . | . . . Piercing Weapon . | . . . Special Melee Weapon . | . . . Unidentified Prototypes . | . . . Corrupted Parts 1 | . . 1 System Corruption 1 | . . 1 Parts Lost 9 | . 3 6 Power 2 | . 1 1 Propulsion 2 | . 2 . Utility 1 | . . 1 Weapon 4 | . . 4 Highest Loss Streak 4 | . 2 4 To Critical Strikes . | . . . Average Backups 3 | 1 4 4 Power . | . . . Propulsion . | . . . Utility 1 | . 2 3 Weapon 1 | . 1 1 Tool/Special . | . . . Unused Backups . | . . . Power . | . . . Propulsion . | . . . Utility . | . . . Weapon . | . . . Tool/Special . | . . . Average Slot Usage (%) 73 | . 85 41 Engine 5 | . 7 . Wheel 14 | . 19 . Device 4 | . 6 . Storage 13 | . 14 11 Protection 8 | . 7 10 Energy Gun 4 | . 6 . Ballistic Gun 5 | . 7 . Launcher 6 | . 6 9 Special Weapon 8 | . 8 10 Peak Build Rating 9 | 9 9 4 Average Rating 7 | 8 6 3 On Entrance 4 | . 9 4 Avg Prop Armor Cover (%) 9 | 9 . . Naked Turns . | . . . Heaviest Build 90 | 13 90 85 Greatest Support 20 | 20 20 3 Greatest Overweight (x) 28 | . 28 28 Average Overweight (x) 3 | . 5 27 Largest Inventory Capacity 25 | 8 25 25 Average Capacity 16 | 7 24 25 Most Carried 7 | 4 7 5 Average Carried 3 | 1 4 4 Final Capacity 25 | 5 25 25 Final Carried 5 | 4 5 3 Class Distribution -------------------- 100% | Mutant Dominant Class ---------------- Mutant | -10/Materials Mutant | -9/Materials Resources | -11 -10 -9 ----------- Run | Yrd Mat Mat Matter Collected 650 | 352 278 20 Remotely 84 | . 84 . Salvage Created 638 | 208 369 61 Parts 44 | 14 19 11 Haulers Intercepted . | . . . Recyclers Shooed 1 | . 1 . Parts Field Recycled . | . . . Retrieved Matter . | . . . Parts Self-Destructed . | . . . Prevented . | . . . Parts Restored . | . . . Kills | -11 -10 -9 ------- Run | Yrd Mat Mat Combat Hostiles Destroyed 15 | . 12 3 Guns 8 | . 7 1 AOE 7 | . 5 2 Classes Destroyed 7 | 3 3 1 Worker 3 | 2 1 . Tunneler 4 | 4 . . Recycler 2 | 1 1 . Mechanic 1 | . 1 . Watcher 1 | . . 1 Swarmer 6 | . 3 3 Grunt 9 | . 9 . Best Kill Streak 7 | 2 7 4 Combat Bots Only 4 | . 4 3 Max Kills in Single Turn 2 | 1 2 2 Gunslinging . | . . . Exploded 2 | . 1 2 Melee . | . . . Uniques/NPCs Destroyed . | . . . Combat | -11 -10 -9 -------- Run | Yrd Mat Mat Hostile Shots Fired 118 | . 57 61 Missed 35 | . 18 17 Hits 83 | . 39 44 Projectile 83 | . 39 44 Critical Strikes 3 | . 1 2 Damage Taken 1200 | . 539 661 Core 516 | . 113 403 Absorbed by Shields . | . . . Redirected to Shielding 54 | . 6 48 Core Remaining (%) 77 | 100 54 . Volleys Fired 67 | 30 34 3 Largest 2 | 2 2 2 Hottest 120 | 60 70 120 Shots Fired 128 | 59 64 5 Gun 113 | 59 52 2 Cannon . | . . . Launcher 14 | . 12 2 Special 1 | . . 1 Kinetic 62 | 30 30 2 Thermal 52 | 29 22 1 Explosive 14 | . 12 2 Electromagnetic . | . . . Robot Hit Streak 6 | 5 6 4 Robot Miss Streak 3 | 3 1 1 Penetration Max . | . . . Secondary Targets 2 | . 2 . Max Gunslinging Chain 1 | . 1 . Shots Hit Robots 51 | 24 26 1 Core Hits 45 | 11 28 6 Critical Kills . | . . . Critical Parts Destroyed . | . . . Critical Strikes . | . . . Melee Attacks . | . . . Impact . | . . . Slashing . | . . . Piercing . | . . . Sneak Attacks . | . . . Combat Hostiles . | . . . Follow-up Attacks . | . . . Damage Inflicted 1187 | 236 766 185 Guns 502 | 236 258 8 Cannons . | . . . Explosions 679 | . 502 177 Melee . | . . . Ramming 6 | . 6 . Kinetic 224 | 76 140 8 Thermal 278 | 160 118 . Explosive 551 | . 502 49 Electromagnetic 128 | . . 128 Impact . | . . . Slashing . | . . . Piercing . | . . . Highest Corruption 2 | . . 2 Average Corruption 1 | . . 1 Corruption Purged . | . . . Corruption Blocked . | . . . Effects 2 | . . 2 Message Errors 1 | . . 1 Misfires 1 | . . 1 Overload Shots . | . . . Overflow Damage 11 | . 8 3 Projectiles . | . . . Explosions 11 | . 8 3 Melee . | . . . Knockbacks . | . . . Impact . | . . . Kinetic . | . . . Secondary . | . . . Self-Inflicted Damage 129 | . 56 73 Shots 6 | . 3 3 Rammed 1 | . 1 . Targets Rammed 1 | . 1 . Kicked . | . . . Crushed . | . . . Highest Temperature 76 | 40 76 8 Average Temperature 20 | 18 23 5 Received Heat Transfer 456 | . 258 198 Siege Activations . | . . . Martial Activations . | . . . Shielding Activations . | . . . Robots Disrupted . | . . . Combat Hostiles . | . . . Robots Corrupted . | . . . Combat Hostiles . | . . . Parts Fried 1 | . . 1 Impact Corruptions . | . . . Robots Melted . | . . . Combat Hostiles . | . . . Parts Melted . | . . . Heat Transferred 650 | 375 275 . Parts Sabotaged . | . . . Parts Stolen . | . . . Parts Stripped . | . . . Power Chain Reactions 1 | . . 1 Alert | -11 -10 -9 ------- Run | Yrd Mat Mat Maximum Alert Level . | . . . Low Security (%) 100 | 100 100 100 Level 1 . | . . . Level 2 . | . . . Level 3 . | . . . Level 4 . | . . . Level 5 . | . . . High Security . | . . . Max Security . | . . . Peak Influence 126 | 9 126 94 Initial 3 | . 3 . Average 18 | . 44 9 Influence Increases 597 | 35 450 112 Destroy 0b10 Robot/C 300 | . 240 60 Destroy 0b10 Robot/NC 55 | 35 15 5 Destroy Leader 62 | . 50 12 Successful Hack 12 | . 12 . Disable Machine 90 | . 60 30 Destroy Structure 63 | . 58 5 Lose Combat Pursuer 15 | . 15 . Influence Decreases 567 | 29 456 82 Entered New Map 3 | . 3 . Time Decay 484 | 29 423 32 Lost Part 80 | . 30 50 Squads Dispatched 6 | . 6 . Investigation 2 | . 2 . Extermination . | . . . Reinforcement 4 | . 4 . Assault . | . . . Garrison . | . . . Intercept . | . . . Searches Triggered . | . . . Construction Impeded . | . . . Haulers Reinforced . | . . . Active Scanning Responses . | . . . Cargo Convoy Interrupts . | . . . Stealth | -11 -10 -9 --------- Run | Yrd Mat Mat Distress Signals 4 | . 2 2 Communications Jammed . | . . . Distress Signals . | . . . Times Spotted 21 | . 14 7 Peak Tracking Total 4 | . 4 3 Tactical Retreats 1 | . 1 . Traps | -11 -10 -9 ------- Run | Yrd Mat Mat Traps Triggered 3 | . 3 . Indirectly . | . . . Trap Hack Attempts . | . . . Triggered . | . . . Disarmed . | . . . Reprogrammed . | . . . Reused . | . . . Traps Extracted . | . . . Installed . | . . . Triggered . | . . . Machines | -11 -10 -9 ---------- Run | Yrd Mat Mat Machines Disabled 6 | . 4 2 Max in Single Turn 2 | . 1 2 Machines Repaired . | . . . Machines Dismantled . | . . . Machines Sabotaged . | . . . Overloaded Fab Kills . | . . . Hacking | -11 -10 -9 --------- Run | Yrd Mat Mat Machines Accessed 4 | . 4 . Terminals 3 | . 3 . Fabricators . | . . . Repair Stations . | . . . Recycling Units 1 | . 1 . Scanalyzers . | . . . Garrison Access . | . . . Total Hacks 17 | . 17 . Successful 9 | . 9 . Failed 8 | . 8 . Catastrophic . | . . . Database Lockouts . | . . . Manual . | . . . Terminals 14 | . 14 . Fabricators . | . . . Repair Stations . | . . . Recycling Units 3 | . 3 . Scanalyzers . | . . . Garrison Access . | . . . Terminal Hacks 7 | . 7 . Record 4 | . 4 . Locate Traps 1 | . 1 . Hauler Manifests 1 | . 1 . Zone Layout 1 | . 1 . Fabricator Hacks . | . . . Repair Station Hacks . | . . . Recycling Unit Hacks 2 | . 2 . Recycle Component 1 | . 1 . Process 1 | . 1 . Scanalyzer . | . . . Garrison Access Hacks . | . . . Unauthorized Hacks . | . . . Terminals . | . . . Fabricators . | . . . Repair Stations . | . . . Recycling Units . | . . . Scanalyzers . | . . . Garrison Access . | . . . Data Cores Recovered . | . . . Used . | . . . Hacking Detections 3 | . 3 . Full Trace Events 2 | . 2 . Feedback Events . | . . . Feedback Blocked . | . . . Robot Schematics Acquired . | . . . Robots Built . | . . . Authchips . | . . . Time . | . . . Total Robot Build Rating . | . . . Part Schematics Acquired . | . . . Parts Built . | . . . Authchips . | . . . Time . | . . . Total Part Build Rating . | . . . Part Studies Acquired . | . . . Parts Repaired . | . . . Time . | . . . Parts Recycled 1 | . 1 . Recycled Matter 180 | . 180 . Retrieved Matter . | . . . Retrieved Components . | . . . Parts Scanalyzed . | . . . Part Schematics Acquired . | . . . Parts Damaged . | . . . Bothacking | -11 -10 -9 ------------ Run | Yrd Mat Mat Used RIF Installer . | . . . Robots Hacked . | . . . Non-combat . | . . . Combat . | . . . Robot Hacks Applied . | . . . Relay Couplers Released . | . . . Fabnet Peak Effective % . | . . . Robots Rewired . | . . . Allies Hacked . | . . . Hacks Repelled . | . . . Allies | -11 -10 -9 -------- Run | Yrd Mat Mat Total Allies . | . . . Largest Group . | . . . Highest-Rated Group . | . . . Highest-Rated Ally . | . . . Total Orders . | . . . Ally Attacks . | . . . Total Damage . | . . . Kills . | . . . Allies Corrupted . | . . . Allies Melted . | . . . Intel | -11 -10 -9 ------- Run | Yrd Mat Mat Active Infowar (turns) 1865 | 1624 241 . Terrain 1865 | 1624 241 . Robot Analysis Total . | . . . Derelict Logs Recovered . | . . . Drone Launches . | . . . Drone Recoveries . | . . . Exploration | -11 -10 -9 ------------- Run | Yrd Mat Mat Turns Passed 3527 | 1692 1360 475 Spaces Moved 1171 | 545 596 30 Core 64 | 23 11 30 Treads . | . . . Legs . | . . . Wheels 1107 | 522 585 . Hover . | . . . Flight . | . . . Fastest Speed 50 | 50 80 1350 Average Speed 165 | 80 179 1441 Slowest Speed 1450 | 100 1450 1450 Overloaded Moves . | . . . Propulsion Burnouts . | . . . Robots Hopped . | . . . Potential Cave-ins . | . . . Cave-ins Triggered . | . . . Exploration Rate (%) 32 | 32 58 6 Regions Visited 2 Branch Regions . Pre-discovered Areas . | . . . Known Exits Taken . | . . . Unknown Exits Taken 2 | 1 1 . Scrap Searched . | . . . Spaces Dug . | . . . Terrain Destroyed 64 | . 60 4 Melee . | . . . Projectile . | . . . AOE 64 | . 60 4 Terrain Rammed . | . . . Walls Destroyed . | . . . Machines Disabled . | . . . Actions | -11 -10 -9 --------- Run | Yrd Mat Mat Total 2645 | 1742 835 68 Wait 1340 | 1139 170 31 Move 1169 | 544 595 30 Hop . | . . . Pick Up 25 | 14 10 1 Fast Attach . | . . . Attach 12 | 7 2 3 Detach . | . . . Swap 22 | 5 17 . Drop 9 | 3 6 . Fire 67 | 30 34 3 Melee . | . . . Ram 1 | . 1 . Kick . | . . . Crush . | . . . Escape Stasis . | . . . Rewire . | . . . Trap . | . . . Miscellaneous . | . . . Route ------- -11/Scrapyard -10/Materials (discovered 3 exits: [*Mat] / [*Min x2]) -9/Materials History --------- Turn | Location | Event 8 | -11/Scrapyard | Discovered new exit (range 14) 1693 | -11/Scrapyard | Entered Materials 1694 | -10/Materials | Build established: Mutant 1694 | -10/Materials | Met a group of wandering Federalists 1809 | -10/Materials | Discovered new exit (range 15) 1809 | -10/Materials | Discovered new exit (range 18) 1979 | -10/Materials | Discovered new exit (range 13) 3053 | -10/Materials | Entered another Materials area 3053 | -9/Materials | Evolved 2 slots: Power x1, Utility x1 3505 | -9/Materials | Core integrity fell below 50% 3520 | -9/Materials | Core integrity fell below 20% 3528 | -9/Materials | Destroyed by Y-45 Defender with Heavy Assault Rifle Last Messages --------------- W-16 Scout sends out distress signal. System corrupted: FCS attempts to trigger Lgt. Assault Rifle. System corrupted: Lgt. Assault Rifle misfires. Weapon Shielding destroyed. Lgt. Assault Rifle destroyed. Acquired Corrupted Lgt. Ion Engine. Mining Laser destroyed. Integrated Corrupted Lgt. Ion Engine (+1). [Achievement: A Problem For Future Me] Complication: Energy sink damages Corrupted Lgt. Ion Engine (-10). U-05 Engineer lays Concrete. Acquired 20 matter. HJMJP8X:O9 IFUUU&RR5IL U-05 Engineer lays Concrete. Lgt. Ion Engine destroyed. U-05 Engineer lays Concrete. Y-45 Defender destroyed. Critical hit (Burn: +37). Map ----- +----------------------------------------------------+ | ?????????????????????????????????????????????????? | | ?????????????????????????????????????????????????? | | ?????????????????????????????????????????????????? | | ?????????????????????????????????????????????????? | | ?????????????????????????????????????????????????? | | ?????????????????????????????????????????????????? | | ?????????????????????????????????????????????????? | | ?????????????????????????????????????????????????? | | ?????????????????????????????????????????????????? | | ?????????????????????#???????????????????????????? | | ???????????????????? ^ ??????????????????????????? | | ???????????????????? ??????????????????????????? | | ????????????????????? ??????????????????????????? | | ?????????????????????^ ??????????????????????????? | | ??????????????# ???? ??????????????????????????? | | ??????????????? ????^ ??#???????????????????????? | | ???????????????? ??? ?? ???????????????????????? | | ?????????????####+####/## #?#######??????????????? | | ????????????? # #?# ########???????? | | ?????????????""" ; #?# #???????? | | ?????????????"R #?# #???????? | | ?????????????""" #?# #???????? | | ???????????# """ % # #?# ########???????? | | ??????????# #####+##########???????? | | ?????????????? """Y # ## + ????????? | | ?????????????? """ !%!@## """ #????????????? | | ?????????????? """ # ## """ #????????????? | | ???????????# # ## """ #????????????? | | ???????????# # + """ #????????????? | | ???????????# #### """ +????????????? | | ???????????##############??# #????????????? | | ???????????????????????????# #????????????? | | ???????????????????????????# #????????????? | | ???????????????????????????##########????????????? | | | | | | | | | | | | | | | | | | | | | | | | | | | | | | | | | +----------------------------------------------------+ Best States ------------- Heat Dissipation 28 Energy Generation 10 Energy Capacity 250 Matter Stores 350 Matter Capacity 350 Sight Range 16 Terrain Scan Range 16 Terrain Scan Density 10 Utility Shielding 33 Weapon Shielding 33 Evasion (%) 50 Item Schematics ----------------- None Robot Schematics ------------------ None Fabricated ------------ Nothing Repaired ---------- Nothing Studied --------- None Alien Tech Used ----------------- None Achievements -------------- A Problem For Future Me DATA ERROR: Steam Global Achievement% For Emergencies Only I Have A Map? Organ Harvest There's More Where That Came From Challenges ------------ None Game ------ Seed LatentPropulsionTracker Manual? 0 Play Time 00:29:59 Cumulative 2.4 hours Start 2026.04.03 @ 23:14:03 End 2026.04.03 @ 23:44:51 Sessions 3 Manual Loads 0 Difficulty Rogue Special Mode None Game No. 6 Rogue 3 Adventurer 3 Explorer 0 Win Type - Total 0 Types 0/0/0/0/0/0/0/0/0/0 Lore% 2 Gallery% 4 Achievement% 5 Wizard Run 0 Options --------- Layout 2 ASCII 0 Keyboard 0 Movement Mouse Keybinds 0 Fullscreen 1 Font 32/SmallcapsGlow Map View 50x44 Zoom Use 22% Tactical HUD 0 Map Filters NONE Filters NONE Steam 1 RUN: 71335bab-7602-49e2-8a36-2bdbf6d6ae4f